bitfinex/quotes_ETHUSD_20250906
["timestamp","ask_amount","ask_price","bid_price","bid_amount"]
[1757132408882,3.11447831,4307.6,4307.5,10.893]
[1757132411391,3.11447831,4307.6,4307.5,11.2039]
[1757132411603,3.11447831,4307.6,4307.5,11.2029]
[1757132411983,3.11447831,4307.6,4307.5,10.892]
[1757132416687,3.11447831,4307.6,4307.5,11.6395]
[1757132417100,3.11447831,4307.6,4307.5,12.1299]
[1757132417612,0.001,4307.6,4307.5,12.1299]
[1757132417794,0.793,4307.6,4307.5,12.1299]
[1757132418011,0.001,4307.6,4307.5,12.82618752]
[1757132418334,3.11447831,4307.6,4307.5,12.82618752]
[1757132418675,0.793,4307.6,4307.5,12.82618752]
[1757132420486,0.793,4307.6,4307.5,11.89918752]
[1757132421222,0.793,4307.6,4307.5,12.33578752]
[1757132421988,3.39807831,4307.6,4307.5,10.892]
[1757132427831,3.11447831,4307.6,4307.5,10.892]
[1757132428739,0.793,4307.6,4307.5,10.892]
[1757132429097,0.793,4307.6,4307.5,11.2029]
[1757132429338,0.793,4307.6,4307.5,11.6395]
[1757132429511,0.793,4307.6,4307.5,12.1299]
[1757132430035,3.11447831,4307.6,4307.5,12.1299]
[1757132431412,3.11447831,4307.6,4307.5,11.6395]
[1757132431608,3.11447831,4307.6,4307.5,10.892]
[1757132431835,3.39807831,4307.6,4307.5,10.892]
[1757132433394,3.11447831,4307.6,4307.5,10.892]
[1757132435846,3.40847831,4307.6,4307.5,10.892]
[1757132437944,3.40847831,4307.6,4307.5,7.042]
[1757132438146,3.11447831,4307.6,4307.5,10.891]
[1757132440456,3.39807831,4307.6,4307.5,10.891]
[1757132441543,4.09443371,4307.6,4307.5,10.891]
[1757132444048,6.38543527,4307.6,4307.5,10.891]
[1757132444614,13.35143527,4307.6,4307.5,7.042]
[1757132444846,13.35143527,4307.6,4307.5,10.891]
[1757132445347,23.35143527,4307.6,4307.5,10.891]
[1757132447824,23.35143527,4307.6,4307.5,7.042]
[1757132448025,23.35143527,4307.6,4307.5,10.891]
[1757132451465,23.35143527,4307.6,4307.5,7.042]
[1757132451665,23.35143527,4307.6,4307.5,10.891]
[1757132453272,0.792,4307.2,4307.1,0.024]
[1757132453466,0.792,4307.2,4307.1,5.58]
[1757132453647,4.3059939,4307.2,4307.1,5.58]
[1757132454465,14.3059939,4307.2,4307.1,5.58]
[1757132454854,13.3988939,4307.2,4307.1,5.58]
[1757132455060,15.49954528,4307.2,4307.1,5.58]
[1757132455366,15.21434528,4307.2,4307.1,5.8793]
[1757132455566,5.21434528,4307.2,4307.1,11.2153]
[1757132456928,5.21434528,4307.2,4307.1,10.916]
[1757132458937,12.18034528,4307.2,4307.1,10.916]
[1757132459337,12.18034528,4307.2,4307.1,11.2153]
[1757132459642,12.18034528,4307.2,4307.1,11.6873]
[1757132459863,12.18034528,4307.2,4307.1,11.2153]
[1757132460174,12.18034528,4307.2,4307.1,12.1496]
[1757132463070,10.0796939,4307.2,4307.1,11.6873]
[1757132463390,3.1136939,4307.2,4307.1,12.1496]
[1757132463987,3.3779939,4307.2,4307.1,10.916]
[1757132464558,4.3056939,4307.2,4307.1,10.916]
[1757132465496,14.3056939,4307.2,4307.1,10.916]
[1757132465658,16.49702528,4307.2,4307.1,10.916]
[1757132466496,16.49702528,4307.2,4307.1,10.917]
[1757132469083,16.49702528,4307.2,4307.1,7.067]
[1757132469287,16.03572528,4307.2,4307.1,10.917]
[1757132469486,16.49702528,4307.2,4307.1,10.917]
[1757132470593,16.03572528,4307.2,4307.1,10.917]
[1757132470800,15.56932528,4307.2,4307.1,10.917]
[1757132472362,15.56932528,4307.2,4307.1,7.067]
[1757132472565,15.30502528,4307.2,4307.1,11.2032]
[1757132472798,15.30502528,4307.2,4307.1,11.6409]
[1757132472992,15.30502528,4307.2,4307.1,11.2032]
[1757132474305,15.30502528,4307.2,4307.1,12.1257]
[1757132474507,5.30502528,4307.2,4307.1,11.2032]
[1757132475702,5.30502528,4307.2,4307.1,11.6409]
[1757132476594,12.27102528,4307.2,4307.1,11.6409]
[1757132477167,12.27102528,4307.2,4307.1,10.917]
[1757132477485,22.27102528,4307.2,4307.1,10.917]
[1757132478474,12.27102528,4307.2,4307.1,11.2032]
[1757132479003,12.27102528,4307.2,4307.1,7.3532]
[1757132479196,12.27102528,4307.2,4307.1,11.2022]
[1757132479398,22.27102528,4307.2,4307.1,11.2022]
[1757132479799,22.27102528,4307.2,4307.1,11.6399]
[1757132480501,12.27102528,4307.2,4307.1,11.6399]
[1757132480705,12.27102528,4307.2,4307.1,12.1247]
[1757132481470,12.27102528,4307.2,4307.1,11.6399]
[1757132482629,12.27102528,4307.2,4307.1,11.2022]
[1757132483127,12.27102528,4307.2,4307.1,11.6399]
[1757132483331,12.27102528,4307.2,4307.1,12.1247]
[1757132490768,3.1141252,4306.4,4306.3,1e-08]
[1757132491048,3.1141252,4306.4,4306.3,7.04400001]
[1757132491215,0.792,4305.9,4305.8,0.02303901]
[1757132491556,3.11439485,4305.9,4305.8,1.73003901]
[1757132491703,0.792,4305.9,4305.8,6.81373901]
[1757132492099,0.792,4306.1,4305.8,6.81373901]
[1757132492300,0.792,4306.1,4305.9,0.9225]
[1757132492605,0.792,4306.1,4306.0,5.0837]
[1757132493148,1.48861249,4306.1,4306.0,5.0837]
[1757132495461,1.48861249,4306.1,4306.0,10.4207]
[1757132496762,10.0,4306.7,4306.0,10.4207]
[1757132496763,0.792,4306.4,4306.0,10.4207]
[1757132496963,0.792,4306.4,4306.0,9.9359]
[1757132497257,0.792,4306.1,4306.0,9.4982]
[1757132497560,0.792,4306.1,4306.0,9.983]
[1757132497757,0.792,4306.1,4306.0,6.5457]
[1757132497923,0.792,4306.1,4306.0,10.4227]
[1757132505970,0.792,4306.1,4306.0,12.74504091]
[1757132506257,0.792,4306.6,4306.0,10.4227]
[1757132506445,0.792,4306.7,4306.1,4.8029]
[1757132506651,0.792,4306.5,4306.2,3.871]
[1757132506840,0.792,4306.5,4306.4,0.2963]
[1757132507043,0.792,4306.5,4306.4,4.1673]
[1757132507241,0.792,4306.5,4306.4,4.6191]
[1757132508137,0.792,4306.7,4306.4,5.60912]
[1757132508337,0.792,4306.7,4306.5,0.9319]
[1757132508541,0.792,4306.7,4306.6,6.8062]
[1757132508759,0.792,4306.7,4306.6,6.8052]
[1757132510567,3.11396345,4306.7,4306.6,5.579]
[1757132510862,5.2242612,4306.7,4306.6,1.707]
[1757132511067,5.2242612,4306.7,4306.6,5.579]
[1757132511279,5.2242612,4306.7,4306.6,1.707]
[1757132511467,15.2242612,4306.7,4306.6,5.579]
[1757132511633,18.2242612,4306.7,4306.6,5.579]
[1757132512236,25.1902612,4306.7,4306.6,5.579]
[1757132515046,2.32239485,4305.9,4305.8,0.02303901]
[1757132515267,3.57886624,4305.9,4305.8,5.60203901]
[1757132515457,3.88206624,4305.9,4305.8,5.60203901]
[1757132516046,4.75886624,4305.9,4305.8,5.60203901]
[1757132518375,4.33606624,4305.9,4305.8,5.60203901]
[1757132518538,3.88206624,4305.9,4305.8,5.60203901]
[1757132519580,2.32239485,4305.9,4305.8,6.37843901]
[1757132519751,2.32239485,4305.9,4305.8,5.89833901]
[1757132520373,3.11439485,4305.9,4305.8,5.60203901]
[1757132520956,3.11439485,4305.9,4305.8,5.89833901]
[1757132521358,3.11439485,4305.9,4305.8,5.60203901]
[1757132521697,4.90733137,4305.9,4305.8,5.60203901]
[1757132522295,4.44093137,4305.9,4305.8,1.73103901]
[1757132522461,4.44093137,4305.9,4305.8,5.60103901]
[1757132523087,3.98693137,4305.9,4305.8,5.60103901]
[1757132527590,3.98693137,4305.9,4305.8,5.60003901]
[1757132527761,3.72773137,4305.9,4305.8,5.60003901]
[1757132531393,4.02133137,4305.9,4305.8,5.60003901]
[1757132532264,3.72773137,4305.9,4305.8,5.60003901]
[1757132532883,2.32239485,4305.9,4305.8,6.80453901]
[1757132533079,2.32239485,4305.9,4305.8,6.80853901]
[1757132533464,3.11439485,4305.9,4305.8,6.80853901]
[1757132538671,0.792,4305.9,4305.8,6.80853901]
[1757132539406,0.001,4306.0,4305.8,6.80853901]
[1757132539602,0.001,4306.0,4305.9,0.9152]
[1757132540085,0.001,4306.0,4305.9,1.2045]
[1757132541890,3.11534091,4306.0,4305.9,1.2045]
[1757132543473,0.793,4306.0,4305.9,1.2045]
[1757132544094,3.11534091,4306.0,4305.9,1.2045]
[1757132545416,0.793,4306.0,4305.9,1.2045]
[1757132546633,0.001,4306.0,4305.9,3.52689485]
[1757132546984,0.001,4306.0,4305.9,6.52689485]
[1757132551794,0.001,4306.0,4305.9,4.2045]
[1757132551996,0.001,4306.0,4305.9,8.0675]
[1757132552303,0.001,4306.0,4305.9,10.38989485]
[1757132557428,0.001,4306.0,4305.9,8.0675]
[1757132558334,0.001,4306.0,4305.9,10.38989485]
[1757132571482,0.001,4306.0,4305.9,10.48274547]
[1757132575470,0.117,4306.0,4305.9,10.48274547]
[1757132575670,0.117,4306.0,4305.9,11.81082794]
[1757132575974,0.117,4306.0,4305.9,10.48274547]
[1757132579464,0.117,4306.0,4305.9,6.61974547]
[1757132579693,0.117,4306.0,4305.9,10.48174547]
[1757132582314,0.001,4306.0,4305.9,10.48174547]
[1757132583517,0.001,4306.0,4305.9,10.04934547]
[1757132583684,0.001,4306.0,4305.9,10.50854547]
[1757132586705,0.001,4306.0,4305.9,10.02574547]
[1757132587628,0.001,4306.0,4305.9,6.16374547]
[1757132587830,0.001,4306.0,4305.9,10.02674547]
[1757132588797,0.001,4306.0,4305.9,10.48064547]
[1757132598457,0.001,4306.0,4305.9,16.88264547]
[1757132603638,0.001,4306.0,4305.9,16.42344547]
[1757132603942,0.001,4306.0,4305.9,16.42214547]
[1757132604538,0.001,4306.0,4305.9,16.88734547]
[1757132606309,0.001,4306.0,4305.9,15.96954547]
[1757132608284,0.001,4306.0,4305.9,18.74354547]
[1757132609347,0.2857,4306.0,4305.9,18.45424547]
[1757132609555,0.2857,4306.0,4305.9,18.44724547]
[1757132612283,0.2857,4306.0,4305.9,14.59124547]
[1757132612582,1.1967,4306.0,4305.9,18.44724547]
[1757132613853,0.7556,4306.0,4305.9,11.59124547]
[1757132614080,1.1967,4306.0,4305.9,15.44724547]
[1757132614266,1.1967,4306.0,4305.9,18.44724547]
[1757132616103,0.001,4306.0,4305.9,18.44724547]
[1757132617667,0.001,4306.0,4305.9,18.76294547]
[1757132617888,0.001,4306.0,4305.9,19.21554547]
[1757132618488,0.2857,4306.0,4305.9,18.44724547]
[1757132618690,0.001,4306.0,4305.9,18.44724547]
[1757132619284,0.2857,4306.0,4305.9,18.44724547]
[1757132621585,1.2184,4306.0,4305.9,18.44724547]
[1757132621905,1.2184,4306.0,4305.9,18.35439485]
[1757132622310,1.2184,4306.0,4305.9,16.032]
[1757132624121,1.2184,4306.0,4305.9,18.35439485]
[1757132625299,1.2184,4306.0,4305.9,16.032]
[1757132626531,2.13224,4306.0,4305.9,16.032]
[1757132627197,2.13224,4306.0,4305.9,13.032]
[1757132630720,1.19954,4306.0,4305.9,13.032]
[1757132630916,1.0777,4306.0,4305.9,13.032]
[1757132631793,1.5693,4306.0,4305.9,13.032]
[1757132632005,2.0104,4306.0,4305.9,13.032]
[1757132635452,1.0777,4306.0,4305.9,13.032]
[1757132636451,2.0104,4306.0,4305.9,13.032]
[1757132638056,1.0777,4306.0,4305.9,13.032]
[1757132641683,1.0777,4306.0,4305.9,13.032]
[1757132643731,1.0777,4306.0,4305.9,10.258]
[1757132646057,4.33274091,4306.0,4305.9,6.402]
[1757132646398,4.33274091,4306.0,4305.9,10.257]
[1757132654610,5.02936149,4306.0,4305.9,10.257]
[1757132655393,4.58826149,4306.0,4305.9,10.257]
[1757132656266,4.09666149,4306.0,4305.9,10.257]
[1757132659183,4.82804383,4306.0,4305.9,10.257]
[1757132665990,2.50570292,4306.0,4305.9,10.257]
[1757132670738,1.80908234,4306.0,4305.9,10.257]
[1757132672560,1.52438234,4306.0,4305.9,10.5477]
[1757132672717,1.52438234,4306.0,4305.9,11.4697]
[1757132672917,1.52438234,4306.0,4305.9,10.9774]
[1757132673111,1.52438234,4306.0,4305.9,10.257]
[1757132674649,1.81008234,4306.0,4305.9,10.257]
[1757132679350,2.50672395,4306.0,4305.9,10.257]
[1757132681659,2.22102395,4306.0,4305.9,10.257]
[1757132683433,2.51452395,4306.0,4305.9,10.257]
[1757132683763,12.69556486,4306.0,4305.9,6.402]
[1757132683928,11.96418252,4306.0,4305.9,10.257]
[1757132688963,11.96418252,4306.0,4305.9,3.855]
[1757132690636,11.53178252,4306.0,4305.9,3.855]
[1757132691032,11.07148252,4306.0,4305.9,3.855]
[1757132691275,13.33939049,4306.0,4305.9,3.855]
[1757132697487,11.01704958,4306.0,4305.9,3.855]
[1757132698655,13.33939049,4306.0,4305.9,3.855]
[1757132702769,6.37339049,4306.0,4305.9,3.855]
[1757132706964,0.001,4306.0,4305.9,5.0736]
[1757132707188,0.793,4306.0,4305.9,5.0736]
[1757132707590,0.001,4306.0,4305.9,5.0736]
[1757132715086,0.001,4306.0,4305.9,4.6131]
[1757132716879,7.759,4306.0,4305.9,4.6131]
[1757132718014,7.759,4306.0,4305.9,4.1412]
[1757132721333,8.8248,4306.0,4305.9,3.855]
[1757132723090,8.8248,4306.0,4305.8,1.73503901]
[1757132723091,0.792,4305.9,4305.8,1.73503901]
[1757132723423,0.792,4305.9,4305.8,5.58903901]
[1757132724690,0.792,4305.9,4305.8,6.40163901]
[1757132725027,0.792,4305.9,4305.8,6.83743901]
[1757132727295,0.792,4305.9,4305.8,12.17543901]
[1757132729552,6.967,4306.0,4305.8,12.17543901]
[1757132729553,0.00018717,4306.0,4305.8,12.17543901]
[1757132729740,0.00018717,4306.0,4305.9,0.9331]
[1757132730245,0.00018717,4306.0,4305.9,1.34126981]
[1757132734968,0.00018717,4306.0,4305.9,3.66366466]
[1757132735119,0.00018717,4306.0,4305.9,6.66366466]
[1757132764250,0.00018717,4306.0,4305.9,5.73056466]
[1757132764653,0.00018717,4306.0,4305.9,6.16176466]
[1757132764879,0.00018717,4306.0,4305.9,6.64446466]
[1757132771791,0.00018717,4306.0,4305.9,6.66836466]
[1757132774754,0.00018717,4306.0,4305.9,13.07136466]
[1757132788493,0.00018717,4306.0,4305.9,12.13356466]
[1757132789305,0.00018717,4306.0,4305.9,12.58866466]
[1757132795333,0.00018717,4306.0,4305.9,12.13356466]
[1757132800716,0.00018717,4306.0,4305.9,13.04406466]
[1757132805860,0.00018717,4306.0,4305.9,12.57776466]
[1757132806955,0.00018717,4306.0,4305.9,12.13356466]
[1757132807721,0.29808717,4306.0,4305.9,11.81826466]
[1757132807961,1.19978717,4306.0,4305.9,11.81826466]
[1757132808462,1.19978717,4306.0,4305.9,15.66926466]
[1757132808622,0.29808717,4306.0,4305.9,15.66926466]
[1757132812281,0.00018717,4306.0,4305.9,15.66926466]
[1757132813767,0.00018717,4306.0,4305.9,16.88026466]
[1757132827246,0.77178717,4306.0,4305.9,11.81826466]
[1757132827480,0.77178717,4306.0,4305.9,15.66826466]
[1757132827681,0.29808717,4306.0,4305.9,15.66826466]
[1757132836566,0.00018717,4306.0,4305.9,15.66826466]
[1757132843160,0.00018717,4306.0,4305.9,16.86396466]
[1757132843482,0.00018717,4306.0,4305.9,16.41076466]
[1757132843884,0.00018717,4306.0,4305.9,16.86396466]
[1757132844585,0.00018717,4306.0,4305.9,16.41076466]
[1757132844890,0.00018717,4306.0,4305.9,16.86396466]
[1757132845084,0.00018717,4306.0,4305.9,16.41756466]
[1757132845248,0.00018717,4306.0,4305.9,16.86396466]
[1757132846686,0.00018717,4306.0,4305.9,19.63796466]
[1757132850359,0.31318717,4306.0,4305.9,18.44226466]
[1757132851175,0.00018717,4306.0,4305.9,18.44226466]
[1757132851374,0.31318717,4306.0,4305.9,18.44226466]
[1757132851686,0.00018717,4306.0,4305.9,16.86396466]
[1757132852563,0.00018717,4306.0,4305.9,16.41076466]
[1757132852799,0.00018717,4306.0,4305.9,15.96436466]
[1757132853985,0.00018717,4306.0,4305.9,15.66826466]
[1757132855299,0.28648717,4306.0,4305.9,15.66826466]
[1757132857483,0.00018717,4306.0,4305.9,15.66826466]
[1757132858389,0.00018717,4306.0,4305.9,15.96436466]
[1757132858704,0.00018717,4306.0,4305.9,16.86396466]
[1757132860503,0.00018717,4306.0,4305.9,16.41076466]
[1757132861685,0.00018717,4306.0,4305.9,15.96436466]
[1757132861896,0.28858717,4306.0,4305.9,15.66826466]
[1757132866025,0.28858717,4306.0,4305.9,17.37526466]
[1757132867129,0.00018717,4306.0,4305.9,17.37526466]
[1757132869489,0.28858717,4306.0,4305.9,17.37526466]
[1757132870637,0.28858717,4306.0,4305.9,22.71126466]
[1757132873143,0.00018717,4306.0,4305.9,22.99776466]
[1757132874366,0.00018717,4306.0,4305.9,22.71126466]
[1757132874544,0.26598717,4306.0,4305.9,22.71126466]
[1757132875523,0.00018717,4306.0,4305.9,22.71126466]
[1757132880561,0.00018717,4306.0,4305.9,23.95376466]
[1757132894337,0.00018717,4306.0,4305.9,23.45466466]
[1757132894734,0.00018717,4306.0,4305.9,23.45466466]
[1757132897560,0.00018717,4306.0,4305.9,23.93856466]
[1757132898578,0.26168717,4306.0,4305.9,22.71126466]
[1757132899653,0.00018717,4306.0,4305.9,22.71126466]
[1757132899856,0.00018717,4306.0,4305.9,23.48356466]
[1757132901072,0.00018717,4306.0,4305.9,23.96746466]
[1757132903480,0.00018717,4306.0,4305.9,23.48356466]
[1757132905558,0.00018717,4306.0,4305.9,23.01546466]
[1757132906700,0.00018717,4306.0,4305.9,23.48356466]
[1757132910610,0.00018717,4306.0,4305.9,23.01546466]
[1757132912276,0.00018717,4306.0,4305.9,22.71126466]
[1757132916015,0.26168717,4306.0,4305.9,22.71126466]
[1757132917915,0.00018717,4306.0,4305.9,22.71126466]
[1757132925248,0.00018717,4306.0,4305.9,23.48356466]
[1757132927843,0.00018717,4306.0,4305.9,23.02296466]
[1757132928410,0.00018717,4306.0,4305.9,22.71126466]
[1757132932768,0.00018717,4306.0,4305.9,23.02296466]
[1757132941771,0.00018717,4306.0,4305.9,22.71126466]
[1757132953124,0.00018717,4306.0,4305.9,23.01256466]
[1757132954721,0.00018717,4306.0,4305.9,23.44516466]
[1757132956340,0.00018717,4306.0,4305.9,23.01256466]
[1757132959745,0.00018717,4306.0,4305.9,22.71126466]
[1757132959934,0.28598717,4306.0,4305.9,22.71126466]
[1757132961120,0.00018717,4306.0,4305.9,22.71126466]
[1757132965446,0.28758717,4306.0,4305.9,22.71126466]
[1757132969460,0.00018717,4306.0,4305.9,22.71126466]
[1757132971184,0.00018717,4306.0,4305.9,23.49836466]
[1757132971663,0.00018717,4306.0,4305.9,23.44516466]
[1757132973491,0.00018717,4306.0,4305.9,23.01256466]
[1757132984120,1.99498717,4306.0,4305.9,13.53886981]
[1757132984295,2.19448589,4306.0,4305.9,17.38486981]
[1757132984898,2.19448589,4306.0,4305.9,20.38486981]
[1757132985598,2.19448589,4306.0,4305.9,13.53886981]
[1757132985796,2.19448589,4306.0,4305.9,17.38486981]
[1757132998046,2.19448589,4306.0,4305.9,17.38586981]
[1757133000360,1.27748589,4306.0,4305.9,17.38586981]
[1757133003981,2.19448589,4306.0,4305.9,17.293]
[1757133004375,1.75448589,4306.0,4305.9,17.293]
[1757133004583,1.27748589,4306.0,4305.9,17.293]
[1757133020331,1.27748589,4306.0,4305.9,17.292]
[1757133021151,0.99168589,4306.0,4305.9,17.292]
[1757133021724,1.27908589,4306.0,4305.9,17.292]
[1757133023219,1.27908589,4306.0,4305.9,13.446]
[1757133023421,1.73138589,4306.0,4305.9,17.292]
[1757133023744,2.16988589,4306.0,4305.9,17.292]
[1757133024643,1.73138589,4306.0,4305.9,17.292]
[1757133024813,2.16988589,4306.0,4305.9,17.292]
[1757133025012,2.16988589,4306.0,4305.9,13.446]
[1757133025212,2.16988589,4306.0,4305.9,17.292]
[1757133025448,4.4922268,4306.0,4305.9,17.292]
[1757133025748,14.4922268,4306.0,4305.9,17.292]
[1757133026433,21.4582268,4306.0,4305.9,10.889]
[1757133028342,21.4582268,4306.0,4305.9,7.043]
[1757133028655,22.15503345,4306.0,4305.9,10.889]
[1757133041750,21.71653345,4306.0,4305.9,10.889]
[1757133041950,21.26423345,4306.0,4305.9,10.889]
[1757133044563,20.97683345,4306.0,4305.9,10.889]
[1757133045001,21.26573345,4306.0,4305.9,10.889]
[1757133051915,20.97683345,4306.0,4305.9,10.889]
[1757133053916,20.97683345,4306.0,4305.9,12.0753]
[1757133053917,20.2800268,4306.0,4305.9,12.0753]
[1757133056421,20.2800268,4306.0,4305.9,11.625]
[1757133061512,20.2800268,4306.0,4305.9,12.0753]
[1757133062340,20.2800268,4306.0,4305.9,11.625]
[1757133063329,20.2800268,4306.0,4305.9,11.1816]
[1757133064130,20.2800268,4306.0,4305.9,10.889]
[1757133071468,20.5481268,4306.0,4305.9,10.889]
[1757133074375,20.2800268,4306.0,4305.9,10.889]
[1757133077562,20.2800268,4306.0,4305.9,12.1434]
[1757133084479,17.95768589,4306.0,4305.9,12.1434]
[1757133085082,20.2800268,4306.0,4305.9,12.1434]
[1757133085284,20.2800268,4306.0,4305.9,11.6512]
[1757133089691,20.2800268,4306.0,4305.9,11.1984]
[1757133090112,20.2800268,4306.0,4305.9,10.889]
[1757133095927,20.5483268,4306.0,4305.9,10.888]
[1757133097128,20.5483268,4306.0,4305.9,7.043]
[1757133097343,20.5483268,4306.0,4305.9,10.888]
[1757133105813,20.2800268,4306.0,4305.9,10.888]
[1757133111947,20.2800268,4306.0,4305.9,11.199]
[1757133113190,20.2800268,4306.0,4305.9,10.888]
[1757133113368,3.11461061,4305.5,4305.2,1.708]
[1757133113569,3.792,4305.3,4305.2,1.708]
[1757133113768,8.88745606,4305.3,4305.2,1.708]
[1757133113981,8.43385606,4305.3,4305.2,1.708]
[1757133114195,8.67434079,4305.3,4305.2,1.708]
[1757133114797,8.67434079,4305.3,4305.2,5.552]
[1757133115757,18.67434079,4305.3,4305.2,5.552]
[1757133118766,13.07952229,4305.3,4305.2,6.3263]
[1757133119090,10.0,4305.3,4305.2,6.7902]
[1757133119262,10.792,4305.3,4305.2,6.7902]
[1757133129307,17.758,4305.3,4305.2,6.7902]
[1757133130018,17.759,4305.3,4305.2,6.7902]
[1757133130989,10.793,4305.3,4305.2,6.7902]
[1757133131388,13.1157185,4305.3,4305.2,6.7902]
[1757133131716,13.1157185,4305.3,4305.2,6.3269]
[1757133131914,11.0919,4305.3,4305.2,1.708]
[1757133132120,12.63572922,4305.3,4305.2,5.553]
[1757133132306,14.95844772,4305.3,4305.2,1.708]
[1757133132485,14.95844772,4305.3,4305.2,5.553]
[1757133132986,14.95844772,4305.3,4305.2,1.708]
[1757133133296,15.86864772,4305.3,4305.2,5.553]
[1757133135091,14.95844772,4305.3,4305.2,5.553]
[1757133138630,15.65533854,4305.3,4305.2,5.553]
[1757133138834,16.56553854,4305.3,4305.2,5.553]
[1757133139032,15.65533854,4305.3,4305.2,5.553]
[1757133140437,15.65533854,4305.3,4305.2,1.708]
[1757133140612,16.13843854,4305.3,4305.2,1.708]
[1757133140799,15.65533854,4305.3,4305.2,5.553]
[1757133142336,15.35643854,4305.3,4305.2,5.553]
[1757133143240,19.56543854,4305.3,4305.2,1.708]
[1757133143415,19.56543854,4305.3,4305.2,5.553]
[1757133143820,19.56543854,4305.3,4305.2,5.555]
[1757133148051,19.56543854,4305.3,4305.2,5.555]
[1757133149749,19.56450944,4305.3,4305.2,5.555]
[1757133150253,26.53050944,4305.3,4305.2,5.555]
[1757133150418,26.10020944,4305.3,4305.2,5.555]
[1757133150621,26.53050944,4305.3,4305.2,5.555]
[1757133151728,6.11477246,4305.2,4305.1,0.024]
[1757133152054,9.29608043,4305.2,4305.1,1.732]
[1757133152249,9.59308043,4305.2,4305.1,1.732]
[1757133152662,9.16278043,4305.2,4305.1,1.732]
[1757133152844,9.16278043,4305.2,4305.1,5.578]
[1757133153056,9.59178043,4305.2,4305.1,5.578]
[1757133153856,8.67968043,4305.2,4305.1,5.578]
[1757133154626,18.38268043,4305.2,4305.1,5.578]
[1757133154827,18.67828043,4305.2,4305.1,5.578]
[1757133155646,25.34868043,4305.2,4305.1,5.578]
[1757133158365,25.64568043,4305.2,4305.1,5.578]
[1757133160349,6.11482641,4305.1,4305.0,0.054]
[1757133160524,15.46473438,4305.1,4305.0,1.762]
[1757133160729,15.75123438,4305.1,4305.0,1.762]
[1757133160930,16.44822073,4305.1,4305.0,1.762]
[1757133161629,26.44822073,4305.1,4305.0,5.607]
[1757133174428,24.12539432,4305.1,4304.5,0.004]
[1757133174626,0.792,4304.4,4303.9,1.709]
[1757133174928,6.11531211,4304.2,4303.9,1.709]
[1757133175082,6.40181211,4304.2,4303.9,1.709]
[1757133175419,8.34063656,4304.2,4303.9,1.709]
[1757133175611,8.34063656,4304.2,4304.1,3.872]
[1757133175806,17.43463656,4304.2,4304.1,3.872]
[1757133176421,3.11542007,4304.0,4303.9,1.709]
[1757133177036,3.81260403,4304.0,4303.9,1.709]
[1757133177234,5.28677599,4304.0,4303.9,1.709]
[1757133177588,15.28677599,4304.0,4303.9,5.557]
[1757133178824,15.28677599,4304.0,4303.9,5.866]
[1757133180164,15.28677599,4304.0,4303.9,6.3177]
[1757133180748,15.28677599,4304.0,4303.9,6.7731]
[1757133180959,13.81260403,4304.0,4303.9,6.7731]
[1757133186262,16.81260403,4304.0,4303.9,6.7731]
[1757133189734,10.0,4304.0,4303.9,6.7731]
[1757133189935,10.792,4304.0,4303.9,6.7731]
[1757133190155,10.0,4304.0,4303.9,6.7731]
[1757133190967,10.792,4304.0,4303.9,6.7731]
[1757133191619,0.792,4304.0,4303.9,6.7731]
[1757133192656,10.792,4304.0,4303.9,6.7731]
[1757133193515,10.792,4304.0,4303.1,0.02]
[1757133193516,0.792,4303.5,4303.1,0.02]
[1757133193772,3.11593524,4303.1,4303.0,2.455]
[1757133193975,4.31523524,4303.1,4303.0,2.455]
[1757133194133,5.69468824,4303.1,4303.0,2.455]
[1757133194322,6.39204237,4303.1,4303.0,2.455]
[1757133195334,6.11601403,4302.9,4302.8,0.025]
[1757133195742,6.41101403,4302.9,4302.8,0.025]
[1757133195948,7.31531403,4302.9,4302.8,0.025]
[1757133196242,9.09688584,4302.9,4302.8,0.025]
[1757133196442,9.09688584,4302.9,4302.8,3.935]
[1757133196645,6.11606804,4302.8,4302.3,1.709]
[1757133196849,3.11628412,4302.4,4302.3,1.709]
[1757133197022,7.25533306,4302.4,4302.3,1.709]
[1757133197365,3.11633814,4302.3,4302.2,5.83626363]
[1757133197655,3.11633814,4302.3,4302.2,7.54526363]
[1757133197861,3.11633814,4302.3,4302.2,11.76506363]
[1757133198054,3.81377981,4302.3,4302.2,11.76506363]
[1757133198259,4.8119911,4302.3,4302.2,11.76506363]
[1757133198559,14.8119911,4302.3,4302.2,11.76506363]
[1757133199453,17.8119911,4302.3,4302.2,11.76506363]
[1757133199616,17.8119911,4302.3,4302.2,11.45726363]
[1757133200024,16.81377981,4302.3,4302.2,12.68456363]
[1757133200263,16.11633814,4302.3,4302.2,12.68456363]
[1757133201855,16.11733814,4302.3,4302.2,12.68456363]
[1757133203947,13.11733814,4302.3,4302.2,12.68456363]
[1757133205085,21.9653307,4302.3,4302.2,7.54526363]
[1757133205256,21.9653307,4302.3,4302.2,11.45626363]
[1757133205461,22.66276912,4302.3,4302.2,11.45626363]
[1757133206606,22.39466912,4302.3,4302.2,11.45626363]
[1757133207891,25.39466912,4302.3,4302.2,11.45626363]
[1757133208799,25.39466912,4302.3,4302.2,11.76406363]
[1757133209158,25.39466912,4302.3,4302.2,12.68356363]
[1757133209686,25.39466912,4302.3,4302.2,12.20746363]
[1757133211294,26.13606912,4302.3,4302.2,11.45526363]
[1757133211485,25.66276912,4302.3,4302.2,11.45526363]
[1757133211855,25.39466912,4302.3,4302.2,11.45526363]
[1757133213293,25.39466912,4302.3,4302.2,11.76306363]
[1757133214152,25.39466912,4302.3,4302.2,11.45526363]
[1757133214825,25.39466912,4302.3,4302.2,11.76306363]
[1757133215097,25.39466912,4302.3,4302.2,12.68256363]
[1757133216693,25.39466912,4302.3,4302.2,12.20646363]
[1757133219478,25.39466912,4302.3,4302.2,11.76306363]
[1757133223167,25.39466912,4302.3,4302.2,12.21566363]